[Event "Bundesturnier Hauptturnier 1 2024"]
[Site "Olten"]
[Date "2024.05.09"]
[Round "2.3"]
[White "Joie, Sebastien"]
[Black "Gut, Lionel"]
[Result "0-1"]
[ECO "A16"]
[WhiteElo "2382"]
[BlackElo "2124"]
[Annotator "ChessBase"]
[PlyCount "132"]
[EventDate "2024.05.09"]
[EventType "tourn"]
[EventCountry "SUI"]
[SourceTitle "playchess.com"]
[Source "ChessBase"]
[SourceQuality "1"]
[TimeControl "5400+30"]

1. Nf3 {[%emt 0:00:09]} Nf6 {[%emt 0:00:12]} 2. c4 {[%emt 0:00:05]} g6 {[%emt 0:00:04]} 3. Nc3 {[%emt 0:00:11]} d5 {[%emt 0:00:04]} 4. cxd5 {[%emt 0:00:05]} Nxd5 {[%emt 0:00:01]} 5. h4 {[%emt 0:00:10]} Bg7 {[%emt 0:02:36]} 6. e4 {[%emt 0:00:26]} Nxc3 {[%emt 0:02:20]} 7. dxc3 {[%emt 0:00:07]} Qxd1+ {[%emt 0:05:12]} 8. Kxd1 {[%emt 0:00:07]} Nd7 {[%emt 0:00:13]} 9. Bf4 {[%emt 0:09:02]} e5 {[%emt 0:13:39]} 10. Bg5 {[%emt 0:00:54]} f6 {[%emt 0:05:10]} 11. Be3 {[%emt 0:00:22]} h5 {[%emt 0:00:23]} 12. Bc4 {[%emt 0:07:10]} Bh6 {[%emt 0:01:53]} 13. Bxh6 {[%emt 0:06:02]} Rxh6 {[%emt 0:01:33]} 14. Kc2 {[%emt 0:04:39]} Nc5 {[%emt 0:05:36]} 15. Rhe1 {[%emt 0:01:06]} Be6 {[%emt 0:02:04]} 16. Bxe6 {[%emt 0:00:31]} Nxe6 {[%emt 0:00:02]} 17. Rad1 {[%emt 0:00:40]} Rh7 {[%emt 0:02:59]} 18. g3 {[%emt 0:05:15]} Rd8 {[%emt 0:01:51]} 19. b4 {[%emt 0:00:06]} Rhd7 {[%emt 0:01:01]} 20. Rxd7 {[%emt 0:00:06]} Rxd7 {[%emt 0:00:06]} 21. Re3 {[%emt 0:02:05]} Ke7 {[%emt 0:08:42]} 22. Nd2 {[%emt 0:00:32]} Rd8 {[%emt 0:12:06]} 23. Nb3 {[%emt 0:00:20]} b6 {[%emt 0:03:46]} 24. a4 {[%emt 0:03:40]} c5 {[%emt 0:01:08]} 25. bxc5 {[%emt 0:05:50]} Nxc5 {[%emt 0:00:42]} 26. Nxc5 {[%emt 0:00:06]} bxc5 {[%emt 0:00:02]} 27. Re1 {[%emt 0:00:11]} Kd7 {[%emt 0:01:40]} 28. Rb1 {[%emt 0:08:31]} Kc6 {[%emt 0:00:24]} 29. a5 {[%emt 0:01:38]} Kc7 {[%emt 0:07:40]} 30. Rg1 {[%emt 0:18:47]} g5 {[%emt 0:08:49]} 31. Rh1 {[%emt 0:01:45]} g4 {[%emt 0:02:07]} 32. Rb1 {[%emt 0:00:46]} Rd6 {[%emt 0:05:36]} 33. Rb5 {[%emt 0:01:41]} Rc6 {[%emt 0:00:24]} 34. Kd2 {[%emt 0:00:44]} a6 {[%emt 0:00:23]} 35. Rb1 {[%emt 0:00:42]} c4 {[%emt 0:00:58]} 36. Rb4 {[%emt 0:01:38]} Rc5 {[%emt 0:01:23]} 37. Rb6 {[%emt 0:01:28]} Rxa5 {[%emt 0:00:13]} 38. Rxf6 {[%emt 0:00:05]} Ra2+ {[%emt 0:00:11]} 39. Kc1 {[%emt 0:00:33]} a5 {[%emt 0:01:19]} 40. Rf5 {[%emt 0:02:36]} Kd6 {[%emt 0:00:32]} 41. Rxh5 {[%emt 0:00:06]} Rxf2 {[%emt 0:00:10]} 42. Rh6+ {[%emt 0:08:32]} Ke7 {[%emt 0:00:31]} 43. Ra6 {[%emt 0:02:23]} Rf3 {[%emt 0:00:16]} 44. Kb2 {[%emt 0:00:35]} Rxg3 {[%emt 0:00:32]} 45. Rxa5 {[%emt 0:00:05]} Kf6 {[%emt 0:01:17]} 46. Ra6+ {[%emt 0:01:33]} Kf7 {[%emt 0:00:08]} 47. Ra7+ {[%emt 0:01:01]} Kg6 {[%emt 0:00:41]} 48. Ra5 {[%emt 0:02:00]} Kh5 {[%emt 0:00:09]} 49. Rxe5+ {[%emt 0:00:05]} Kxh4 {[%emt 0:00:01]} 50. Rc5 {[%emt 0:02:55]} Re3 {[%emt 0:00:07]} 51. Rxc4 {[%emt 0:00:55]} g3 {[%emt 0:00:04]} 52. Rc8 {[%emt 0:01:43]} g2 {[%emt 0:00:08]} 53. Rh8+ {[%emt 0:00:08]} Kg3 {[%emt 0:00:04]} 54. Kb3 {[%emt 0:01:01]} Kf2 {[%emt 0:00:07]} 55. Rh2 {[%emt 0:00:04]} Kf1 {[%emt 0:00:52]} 56. Rxg2 {[%emt 0:00:05]} Kxg2 {[%emt 0:00:02]} 57. Kc4 {[%emt 0:00:08]} Kf3 {[%emt 0:01:36]} 58. Kd4 {[%emt 0:00:01]} Rxe4+ {[%emt 0:00:15]} 59. Kd5 {[%emt 0:00:00]} Re8 {[%emt 0:00:18]} 60. c4 {[%emt 0:00:06]} Rd8+ {[%emt 0:00:14]} 61. Ke5 {[%emt 0:00:05]} Rc8 {[%emt 0:03:38]} 62. Kd5 {[%emt 0:00:01]} Kf4 {[%emt 0:00:28]} 63. c5 {[%emt 0:00:01]} Kf5 {[%emt 0:00:11]} 64. Kd6 {[%emt 0:00:31]} Kf6 {[%emt 0:00:27]} 65. c6 {[%emt 0:00:05]} Rd8+ {[%emt 0:00:03]} 66. Kc7 {[%emt 0:00:25]} Ke7 {[%emt 0:00:06]} 0-1

[Event "Bundesturnier Hauptturnier 1 2024"]
[Site "Olten"]
[Date "2024.05.09"]
[Round "2.4"]
[White "Gemelli, Romain"]
[Black "Loetscher, Roland"]
[Result "1/2-1/2"]
[ECO "D30"]
[WhiteElo "2047"]
[BlackElo "2384"]
[Annotator "ChessBase"]
[PlyCount "143"]
[EventDate "2024.05.09"]
[EventType "tourn"]
[EventCountry "SUI"]
[SourceTitle "playchess.com"]
[Source "ChessBase"]
[SourceQuality "1"]
[TimeControl "5400+30"]

1. d4 {[%emt 0:01:30]} d5 {[%emt 0:00:06]} 2. c4 {[%emt 0:00:12]} e6 {[%emt 0:00:07]} 3. Nf3 {[%emt 0:00:16]} a6 {[%emt 0:00:07]} 4. Bg5 {[%emt 0:02:50]} Be7 {[%emt 0:00:13]} 5. Bxe7 {[%emt 0:00:21]} Nxe7 {[%emt 0:00:42]} 6. e3 {[%emt 0:01:18]} O-O {[%emt 0:01:36]} 7. Nc3 {[%emt 0:01:03]} Nd7 {[%emt 0:02:25]} 8. cxd5 {[%emt 0:06:07]} exd5 {[%emt 0:00:33]} 9. Bd3 {[%emt 0:00:18]} Nf6 {[%emt 0:01:08]} 10. Qc2 {[%emt 0:02:58]} g6 {[%emt 0:03:01]} 11. O-O {[%emt 0:01:37]} Bf5 {[%emt 0:01:01]} 12. b4 {[%emt 0:07:34]} Re8 {[%emt 0:05:14]} 13. a4 {[%emt 0:05:07]} c6 {[%emt 0:18:08]} 14. b5 {[%emt 0:08:14]} cxb5 {[%emt 0:01:48]} 15. axb5 {[%emt 0:00:32]} a5 {[%emt 0:00:11]} 16. Ne5 {[%emt 0:06:33]} Rc8 {[%emt 0:01:21]} 17. Bxf5 {[%emt 0:05:29]} Nxf5 {[%emt 0:00:21]} 18. Qb3 {[%emt 0:00:29]} Re6 {[%emt 0:09:37]} 19. Rfc1 {[%emt 0:06:12]} Ne7 {[%emt 0:18:50]} 20. Ne2 {[%emt 0:05:12]} Ne4 {[%emt 0:07:10]} 21. f3 {[%emt 0:06:43]} Nf6 {[%emt 0:04:30]} 22. Nf4 {[%emt 0:02:04]} Rd6 {[%emt 0:00:23]} 23. g4 {[%emt 0:05:13]} g5 {[%emt 0:02:32]} 24. Nfd3 {[%emt 0:02:25]} b6 {[%emt 0:03:53]} 25. Rc3 {[%emt 0:04:55]} Qe8 {[%emt 0:08:10]} 26. Rac1 {[%emt 0:01:59]} Rxc3 {[%emt 0:00:25]} 27. Rxc3 {[%emt 0:02:03]} Nd7 {[%emt 0:03:05]} 28. Rc7 {[%emt 0:03:10]} Ng6 {[%emt 0:02:51]} 29. Qc3 {[%emt 0:05:46]} Ndxe5 {[%emt 0:00:58]} 30. dxe5 {[%emt 0:00:14]} Rd8 {[%emt 0:00:19]} 31. Rc6 {[%emt 0:01:15]} Qe7 {[%emt 0:04:37]} 32. Rxb6 {[%emt 0:01:31]} Re8 {[%emt 0:00:04]} 33. Kf2 {[%emt 0:02:33]} Nxe5 {[%emt 0:00:46]} 34. Nxe5 {[%emt 0:00:02]} Qxe5 {[%emt 0:00:08]} 35. Qxe5 {[%emt 0:00:04]} Rxe5 {[%emt 0:00:03]} 36. Rb8+ {[%emt 0:00:51]} Kg7 {[%emt 0:00:06]} 37. b6 {[%emt 0:00:28]} Re6 {[%emt 0:01:16]} 38. Rd8 {[%emt 0:01:12]} Rxb6 {[%emt 0:00:09]} 39. Rxd5 {[%emt 0:00:05]} h6 {[%emt 0:00:42]} 40. Rxa5 {[%emt 0:00:05]} Rb2+ {[%emt 0:00:26]} 41. Kg3 {[%emt 0:00:15]} Re2 {[%emt 0:00:41]} 42. Re5 {[%emt 0:01:02]} Kg6 {[%emt 0:00:56]} 43. h4 {[%emt 0:00:52]} Kf6 {[%emt 0:00:39]} 44. Re8 {[%emt 0:00:55]} Kg7 {[%emt 0:00:15]} 45. Re5 {[%emt 0:02:03]} Kf6 {[%emt 0:00:10]} 46. Re4 {[%emt 0:00:05]} Kg7 {[%emt 0:00:24]} 47. Re8 {[%emt 0:00:09]} Kf6 {[%emt 0:00:39]} 48. e4 {[%emt 0:00:41]} Kg7 {[%emt 0:00:34]} 49. e5 {[%emt 0:00:45]} Ra2 {[%emt 0:00:54]} 50. e6 {[%emt 0:01:02]} fxe6 {[%emt 0:00:32]} 51. Rxe6 {[%emt 0:00:03]} Rb2 {[%emt 0:00:32]} 52. Re7+ {[%emt 0:00:30]} Kf6 {[%emt 0:00:27]} 53. Ra7 {[%emt 0:00:27]} gxh4+ {[%emt 0:00:36]} 54. Kxh4 {[%emt 0:00:07]} Rh2+ {[%emt 0:00:18]} 55. Kg3 {[%emt 0:00:06]} Rb2 {[%emt 0:00:11]} 56. f4 {[%emt 0:01:31]} Rb1 {[%emt 0:00:31]} 57. f5 {[%emt 0:00:43]} Rg1+ {[%emt 0:00:49]} 58. Kf3 {[%emt 0:00:16]} h5 {[%emt 0:00:38]} 59. Ra6+ {[%emt 0:00:41]} Kf7 {[%emt 0:00:21]} 60. gxh5 {[%emt 0:00:15]} Rg5 {[%emt 0:00:24]} 61. Kf4 {[%emt 0:00:06]} Rxh5 {[%emt 0:00:25]} 62. Ke5 {[%emt 0:00:11]} Rh1 {[%emt 0:00:57]} 63. Ra7+ {[%emt 0:00:05]} Kg8 {[%emt 0:00:27]} 64. Ke6 {[%emt 0:00:17]} Re1+ {[%emt 0:00:31]} 65. Kf6 {[%emt 0:00:06]} Rf1 {[%emt 0:00:15]} 66. Rd7 {[%emt 0:00:26]} Rf2 {[%emt 0:00:15]} 67. Rd8+ {[%emt 0:00:19]} Kh7 {[%emt 0:00:05]} 68. Ke6 {[%emt 0:00:13]} Kg7 {[%emt 0:00:25]} 69. Rd5 {[%emt 0:00:47]} Re2+ {[%emt 0:00:18]} 70. Re5 {[%emt 0:00:05]} Rxe5+ {[%emt 0:00:17]} 71. Kxe5 {[%emt 0:00:07]} Kf7 {[%emt 0:00:04]} 72. f6 {[%emt 0:00:05]} 1/2-1/2

[Event "Bundesturnier Hauptturnier 1 2024"]
[Site "Olten"]
[Date "2024.05.09"]
[Round "2.5"]
[White "Willems, Niels"]
[Black "Hofer, Maximilian"]
[Result "1-0"]
[ECO "E63"]
[WhiteElo "2329"]
[BlackElo "2124"]
[Annotator "ChessBase"]
[PlyCount "67"]
[EventDate "2024.05.09"]
[EventType "tourn"]
[EventCountry "SUI"]
[SourceTitle "playchess.com"]
[Source "ChessBase"]
[SourceQuality "1"]
[TimeControl "5400+30"]

1. c4 {[%emt 0:00:03]} Nf6 {[%emt 0:00:08]} 2. Nc3 {[%emt 0:00:06]} g6 {[%emt 0:00:10]} 3. g3 {[%emt 0:00:04]} Bg7 {[%emt 0:00:06]} 4. Bg2 {[%emt 0:00:05]} O-O {[%emt 0:00:44]} 5. d4 {[%emt 0:00:53]} d6 {[%emt 0:02:02]} 6. Nf3 {[%emt 0:00:10]} Nc6 {[%emt 0:00:52]} 7. O-O {[%emt 0:00:11]} a6 {[%emt 0:00:06]} 8. h3 {[%emt 0:02:42]} Bd7 {[%emt 0:01:00]} 9. Bg5 {[%emt 0:02:52]} h6 {[%emt 0:03:49]} 10. Be3 {[%emt 0:00:44]} Rb8 {[%emt 0:02:39]} 11. Nd5 {[%emt 0:12:54]} Kh7 {[%emt 0:12:01]} 12. Rc1 {[%emt 0:04:16]} e6 {[%emt 0:13:18]} 13. Nxf6+ {[%emt 0:00:38]} Qxf6 {[%emt 0:01:03]} 14. b3 {[%emt 0:01:50]} Qe7 {[%emt 0:10:13]} 15. Qd2 {[%emt 0:05:27]} e5 {[%emt 0:03:18]} 16. d5 {[%emt 0:08:31]} Nd8 {[%emt 0:00:17]} 17. c5 {[%emt 0:00:19]} f5 {[%emt 0:02:01]} 18. cxd6 {[%emt 0:10:34]} cxd6 {[%emt 0:00:11]} 19. Rc7 {[%emt 0:00:39]} Rf7 {[%emt 0:08:19]} 20. Rfc1 {[%emt 0:02:27]} Qf8 {[%emt 0:00:33]} 21. h4 {[%emt 0:05:13]} Bf6 {[%emt 0:16:02]} 22. Bh3 {[%emt 0:17:26]} Qg7 {[%emt 0:01:04]} 23. h5 {[%emt 0:04:54]} Be8 {[%emt 0:06:04]} 24. hxg6+ {[%emt 0:01:22]} Qxg6 {[%emt 0:00:10]} 25. Qc2 {[%emt 0:01:41]} e4 {[%emt 0:00:57]} 26. Nd4 {[%emt 0:00:36]} Bxd4 {[%emt 0:00:49]} 27. Bxd4 {[%emt 0:00:02]} Bd7 {[%emt 0:03:47]} 28. Bb2 {[%emt 0:04:03]} Re7 {[%emt 0:01:16]} 29. Qc3 {[%emt 0:01:15]} Nf7 {[%emt 0:00:21]} 30. Qf6 {[%emt 0:00:24]} Qg5 {[%emt 0:06:36]} 31. Rxd7 {[%emt 0:00:25]} Rxd7 {[%emt 0:01:52]} 32. Bxf5+ {[%emt 0:00:52]} Kg8 {[%emt 0:00:04]} 33. Qxg5+ {[%emt 0:00:42]} Nxg5 {[%emt 0:00:33]} 34. Bxd7 {[%emt 0:00:04]} 1-0

[Event "Bundesturnier Hauptturnier 1 2024"]
[Site "Olten"]
[Date "2024.05.09"]
[Round "2.6"]
[White "Rotunno, Flavio"]
[Black "Rohrer, Christophe"]
[Result "1/2-1/2"]
[ECO "D38"]
[WhiteElo "2105"]
[BlackElo "2240"]
[Annotator "ChessBase"]
[PlyCount "65"]
[EventDate "2024.05.09"]
[EventType "tourn"]
[EventCountry "SUI"]
[SourceTitle "playchess.com"]
[Source "ChessBase"]
[SourceQuality "1"]
[TimeControl "5400+30"]

1. d4 {[%emt 0:12:44]} Nf6 {[%emt 0:00:07]} 2. c4 {[%emt 0:00:04]} e6 {[%emt 0:00:09]} 3. Nf3 {[%emt 0:00:04]} d5 {[%emt 0:00:12]} 4. Nc3 {[%emt 0:00:06]} Bb4 {[%emt 0:00:15]} 5. Bg5 {[%emt 0:00:27]} Nbd7 {[%emt 0:01:00]} 6. e3 {[%emt 0:00:20]} c5 {[%emt 0:00:31]} 7. cxd5 {[%emt 0:00:10]} exd5 {[%emt 0:00:06]} 8. Bd3 {[%emt 0:00:05]} Qa5 {[%emt 0:00:46]} 9. Qc2 {[%emt 0:00:35]} c4 {[%emt 0:01:11]} 10. Bf5 {[%emt 0:00:07]} O-O {[%emt 0:00:17]} 11. O-O {[%emt 0:00:32]} Re8 {[%emt 0:00:21]} 12. Nd2 {[%emt 0:07:33]} g6 {[%emt 0:00:40]} 13. Bxd7 {[%emt 0:03:42]} Nxd7 {[%emt 0:00:08]} 14. f3 {[%emt 0:03:18]} Nb6 {[%emt 0:04:44]} 15. Bf4 {[%emt 0:26:51]} Bxc3 {[%emt 0:07:09]} 16. bxc3 {[%emt 0:03:44]} Qa4 {[%emt 0:03:17]} 17. Qb1 {[%emt 0:06:40]} Qa3 {[%emt 0:00:58]} 18. Qc2 {[%emt 0:00:07]} Bd7 {[%emt 0:02:15]} 19. e4 {[%emt 0:01:22]} Ba4 {[%emt 0:04:22]} 20. Qc1 {[%emt 0:00:27]} Qxc1 {[%emt 0:00:36]} 21. Raxc1 {[%emt 0:12:20]} Bc6 {[%emt 0:12:35]} 22. Rfe1 {[%emt 0:01:57]} Re6 {[%emt 0:06:46]} 23. Bc7 {[%emt 0:06:39]} Na4 {[%emt 0:14:04]} 24. exd5 {[%emt 0:01:02]} Bxd5 {[%emt 0:03:45]} 25. Rxe6 {[%emt 0:00:31]} Bxe6 {[%emt 0:03:04]} 26. Ne4 {[%emt 0:00:29]} f5 {[%emt 0:05:36]} 27. Nc5 {[%emt 0:00:44]} Nxc5 {[%emt 0:00:34]} 28. dxc5 {[%emt 0:00:04]} Rc8 {[%emt 0:01:22]} 29. Bd6 {[%emt 0:00:19]} Rc6 {[%emt 0:01:01]} 30. Rb1 {[%emt 0:00:35]} b6 {[%emt 0:03:17]} 31. cxb6 {[%emt 0:03:09]} Rxb6 {[%emt 0:01:05]} 32. Rxb6 {[%emt 0:00:06]} axb6 {[%emt 0:00:04]} 33. Kf2 {[%emt 0:00:50]} 1/2-1/2

[Event "Bundesturnier Hauptturnier 1 2024"]
[Site "Olten"]
[Date "2024.05.09"]
[Round "2.7"]
[White "Gryshko, Vitalii"]
[Black "Borner, Daniel"]
[Result "1/2-1/2"]
[ECO "A48"]
[WhiteElo "2316"]
[BlackElo "2081"]
[Annotator "ChessBase"]
[PlyCount "77"]
[EventDate "2024.05.09"]
[EventType "tourn"]
[EventCountry "SUI"]
[SourceTitle "playchess.com"]
[Source "ChessBase"]
[SourceQuality "1"]
[TimeControl "5400+30"]

1. Nf3 {[%emt 0:00:04]} Nf6 {[%emt 0:00:22]} 2. b3 {[%emt 0:00:30]} g6 {[%emt 0:00:20]} 3. Bb2 {[%emt 0:00:11]} Bg7 {[%emt 0:00:05]} 4. e3 {[%emt 0:00:52]} O-O {[%emt 0:00:18]} 5. d4 {[%emt 0:00:08]} c5 {[%emt 0:02:23]} 6. dxc5 {[%emt 0:01:37]} Qa5+ {[%emt 0:01:15]} 7. Nbd2 {[%emt 0:00:10]} Qxc5 {[%emt 0:00:40]} 8. Bd3 {[%emt 0:00:26]} Qc7 {[%emt 0:04:04]} 9. O-O {[%emt 0:01:31]} b6 {[%emt 0:01:38]} 10. Qe2 {[%emt 0:02:25]} Bb7 {[%emt 0:00:37]} 11. c4 {[%emt 0:01:04]} d6 {[%emt 0:01:08]} 12. Rac1 {[%emt 0:01:17]} Nbd7 {[%emt 0:00:59]} 13. b4 {[%emt 0:01:26]} Rac8 {[%emt 0:01:22]} 14. Nd4 {[%emt 0:01:06]} Qb8 {[%emt 0:02:57]} 15. N2b3 {[%emt 0:02:45]} a6 {[%emt 0:06:02]} 16. Bb1 {[%emt 0:02:32]} Rfe8 {[%emt 0:11:11]} 17. Rfd1 {[%emt 0:01:16]} Qa8 {[%emt 0:03:01]} 18. f3 {[%emt 0:00:46]} e5 {[%emt 0:02:51]} 19. Nc2 {[%emt 0:00:36]} d5 {[%emt 0:01:08]} 20. Na3 {[%emt 0:01:36]} Bh6 {[%emt 0:09:27]} 21. cxd5 {[%emt 0:01:32]} Bxd5 {[%emt 0:08:41]} 22. Nd2 {[%emt 0:01:35]} b5 {[%emt 0:03:04]} 23. Rxc8 {[%emt 0:03:10]} Rxc8 {[%emt 0:00:11]} 24. Bd3 {[%emt 0:03:59]} Be6 {[%emt 0:05:30]} 25. Ne4 {[%emt 0:08:04]} Nd5 {[%emt 0:00:32]} 26. Nc2 {[%emt 0:01:26]} f5 {[%emt 0:04:17]} 27. Nc5 {[%emt 0:02:23]} Nxc5 {[%emt 0:01:51]} 28. bxc5 {[%emt 0:00:07]} Bg7 {[%emt 0:00:24]} 29. Qf2 {[%emt 0:05:58]} Qc6 {[%emt 0:02:24]} 30. e4 {[%emt 0:10:58]} Nf4 {[%emt 0:00:56]} 31. Nb4 {[%emt 0:06:30]} Nxd3 {[%emt 0:03:39]} 32. Nxd3 {[%emt 0:00:13]} fxe4 {[%emt 0:00:57]} 33. Nxe5 {[%emt 0:02:06]} Bxe5 {[%emt 0:12:04]} 34. Bxe5 {[%emt 0:00:05]} Qxc5 {[%emt 0:01:05]} 35. Rd8+ {[%emt 0:00:04]} Kf7 {[%emt 0:00:20]} 36. Rxc8 {[%emt 0:00:03]} Qxf2+ {[%emt 0:01:33]} 37. Kxf2 {[%emt 0:00:06]} Bxc8 {[%emt 0:00:02]} 38. fxe4 {[%emt 0:00:08]} Ke6 {[%emt 0:01:45]} 39. Bc3 {[%emt 0:00:18]} 1/2-1/2

[Event "Bundesturnier Hauptturnier 1 2024"]
[Site "Olten"]
[Date "2024.05.09"]
[Round "2.8"]
[White "Menzi, Jonas"]
[Black "Sutter, Oliver"]
[Result "1/2-1/2"]
[ECO "C00"]
[WhiteElo "2063"]
[BlackElo "2304"]
[Annotator "ChessBase"]
[PlyCount "145"]
[EventDate "2024.05.09"]
[EventType "tourn"]
[EventCountry "SUI"]
[SourceTitle "playchess.com"]
[Source "ChessBase"]
[SourceQuality "1"]
[TimeControl "5400+30"]

1. e4 {[%emt 0:00:13]} c5 {[%emt 0:00:07]} 2. Nf3 {[%emt 0:00:20]} e6 {[%emt 0:00:05]} 3. d3 {[%emt 0:01:20]} Nc6 {[%emt 0:03:00]} 4. g3 {[%emt 0:00:17]} d5 {[%emt 0:00:19]} 5. Qe2 {[%emt 0:00:15]} Nf6 {[%emt 0:00:36]} 6. Bg2 {[%emt 0:00:13]} Be7 {[%emt 0:00:08]} 7. O-O {[%emt 0:00:10]} b6 {[%emt 0:09:50]} 8. e5 {[%emt 0:17:59]} Nd7 {[%emt 0:01:02]} 9. c4 {[%emt 0:01:55]} d4 {[%emt 0:09:56]} 10. Na3 {[%emt 0:05:49]} Bb7 {[%emt 0:02:46]} 11. h4 {[%emt 0:06:27]} h6 {[%emt 0:00:27]} 12. h5 {[%emt 0:00:28]} a6 {[%emt 0:01:05]} 13. Re1 {[%emt 0:01:18]} Qc7 {[%emt 0:01:42]} 14. Nc2 {[%emt 0:01:57]} O-O-O {[%emt 0:13:29]} 15. Bd2 {[%emt 0:11:26]} g5 {[%emt 0:07:59]} 16. hxg6 {[%emt 0:05:50]} fxg6 {[%emt 0:00:04]} 17. Bh3 {[%emt 0:00:18]} Nf8 {[%emt 0:07:38]} 18. Rab1 {[%emt 0:02:39]} g5 {[%emt 0:01:07]} 19. b4 {[%emt 0:05:15]} g4 {[%emt 0:14:23]} 20. Bxg4 {[%emt 0:02:08]} h5 {[%emt 0:00:05]} 21. Bh3 {[%emt 0:00:50]} h4 {[%emt 0:00:17]} 22. g4 {[%emt 0:21:20]} cxb4 {[%emt 0:01:44]} 23. g5 {[%emt 0:03:55]} a5 {[%emt 0:02:45]} 24. a3 {[%emt 0:01:04]} bxa3 {[%emt 0:00:56]} 25. Ra1 {[%emt 0:00:33]} Bc5 {[%emt 0:02:19]} 26. Nxa3 {[%emt 0:00:28]} Na7 {[%emt 0:02:14]} 27. Nb5 {[%emt 0:01:58]} Nxb5 {[%emt 0:00:06]} 28. cxb5 {[%emt 0:00:01]} Qf7 {[%emt 0:02:01]} 29. Nh2 {[%emt 0:01:45]} Kb8 {[%emt 0:00:35]} 30. Qg4 {[%emt 0:04:08]} Bd5 {[%emt 0:01:44]} 31. Bg2 {[%emt 0:00:59]} Ng6 {[%emt 0:00:36]} 32. Bxd5 {[%emt 0:01:04]} Rxd5 {[%emt 0:00:04]} 33. f4 {[%emt 0:00:07]} Ne7 {[%emt 0:03:26]} 34. Qg2 {[%emt 0:01:44]} Nf5 {[%emt 0:01:18]} 35. Ng4 {[%emt 0:00:11]} h3 {[%emt 0:01:10]} 36. Qf3 {[%emt 0:00:41]} Qh5 {[%emt 0:01:56]} 37. Nh2 {[%emt 0:00:53]} Qxf3 {[%emt 0:03:58]} 38. Nxf3 {[%emt 0:00:02]} Be7 {[%emt 0:00:12]} 39. Rab1 {[%emt 0:00:52]} Rc8 {[%emt 0:00:52]} 40. Rb2 {[%emt 0:00:59]} Rdc5 {[%emt 0:03:38]} 41. Kh2 {[%emt 0:00:27]} Rh8 {[%emt 0:01:31]} 42. Re4 {[%emt 0:00:33]} Rd5 {[%emt 0:00:46]} 43. Re1 {[%emt 0:00:14]} Bc5 {[%emt 0:00:39]} 44. Rg1 {[%emt 0:00:29]} Rd7 {[%emt 0:00:22]} 45. Rc2 {[%emt 0:00:53]} Rc7 {[%emt 0:00:23]} 46. Ra2 {[%emt 0:00:31]} Ne7 {[%emt 0:00:27]} 47. Rg3 {[%emt 0:00:27]} Ng6 {[%emt 0:00:32]} 48. Rxh3 {[%emt 0:00:17]} Rxh3+ {[%emt 0:00:09]} 49. Kxh3 {[%emt 0:00:01]} Rh7+ {[%emt 0:00:05]} 50. Kg4 {[%emt 0:00:58]} Rh1 {[%emt 0:02:00]} 51. f5 {[%emt 0:00:35]} exf5+ {[%emt 0:00:02]} 52. Kxf5 {[%emt 0:00:02]} Ne7+ {[%emt 0:00:07]} 53. Ke4 {[%emt 0:00:34]} Kc7 {[%emt 0:01:42]} 54. Bf4 {[%emt 0:00:47]} Kd7 {[%emt 0:00:17]} 55. Rg2 {[%emt 0:00:28]} Ng6 {[%emt 0:00:45]} 56. Kf5 {[%emt 0:00:39]} Ne7+ {[%emt 0:00:06]} 57. Kf6 {[%emt 0:00:35]} Nd5+ {[%emt 0:00:08]} 58. Kf5 {[%emt 0:00:09]} Ne7+ {[%emt 0:00:04]} 59. Ke4 {[%emt 0:00:46]} Ng6 {[%emt 0:00:18]} 60. Bd2 {[%emt 0:00:38]} a4 {[%emt 0:00:11]} 61. Kf5 {[%emt 0:00:32]} a3 {[%emt 0:01:05]} 62. Be1 {[%emt 0:00:16]} Rf1 {[%emt 0:01:13]} 63. Kxg6 {[%emt 0:00:37]} Rxf3 {[%emt 0:00:02]} 64. Kh7 {[%emt 0:00:29]} Rh3+ {[%emt 0:00:54]} 65. Kg8 {[%emt 0:00:19]} Rh1 {[%emt 0:00:14]} 66. Re2 {[%emt 0:00:47]} Ke6 {[%emt 0:00:21]} 67. g6 {[%emt 0:00:18]} a2 {[%emt 0:00:45]} 68. Rxa2 {[%emt 0:00:05]} Rxe1 {[%emt 0:00:04]} 69. g7 {[%emt 0:00:21]} Re3 {[%emt 0:00:54]} 70. Kh7 {[%emt 0:00:43]} Rh3+ {[%emt 0:00:04]} 71. Kg6 {[%emt 0:00:21]} Rg3+ {[%emt 0:00:06]} 72. Kh7 {[%emt 0:00:08]} Rh3+ {[%emt 0:00:10]} 73. Kg6 {[%emt 0:00:07]} 1/2-1/2

[Event "Bundesturnier Hauptturnier 1 2024"]
[Site "Olten"]
[Date "2024.05.09"]
[Round "2.9"]
[White "Toktomushev, Teimur"]
[Black "Kwiatkowski, Jakub"]
[Result "1-0"]
[ECO "E11"]
[WhiteElo "2295"]
[BlackElo "2057"]
[Annotator "ChessBase"]
[PlyCount "75"]
[EventDate "2024.05.09"]
[EventType "tourn"]
[EventCountry "SUI"]
[SourceTitle "playchess.com"]
[Source "ChessBase"]
[SourceQuality "1"]
[TimeControl "5400+30"]

1. d4 {[%emt 0:05:04]} Nf6 {[%emt 0:00:09]} 2. c4 {[%emt 0:00:18]} e6 {[%emt 0:00:10]} 3. Nf3 {[%emt 0:00:05]} Bb4+ {[%emt 0:00:08]} 4. Bd2 {[%emt 0:00:08]} Qe7 {[%emt 0:00:07]} 5. g3 {[%emt 0:00:21]} Nc6 {[%emt 0:00:10]} 6. a3 {[%emt 0:01:17]} Bxd2+ {[%emt 0:00:12]} 7. Qxd2 {[%emt 0:00:07]} d6 {[%emt 0:01:34]} 8. Bg2 {[%emt 0:00:32]} O-O {[%emt 0:00:33]} 9. O-O {[%emt 0:00:05]} e5 {[%emt 0:01:59]} 10. d5 {[%emt 0:07:53]} Nb8 {[%emt 0:00:11]} 11. Nc3 {[%emt 0:00:18]} a5 {[%emt 0:03:40]} 12. b4 {[%emt 0:03:34]} Na6 {[%emt 0:02:01]} 13. Ne1 {[%emt 0:13:59]} Bd7 {[%emt 0:06:20]} 14. Rb1 {[%emt 0:01:11]} axb4 {[%emt 0:06:34]} 15. axb4 {[%emt 0:00:05]} Rfe8 {[%emt 0:01:53]} 16. e4 {[%emt 0:04:52]} c6 {[%emt 0:06:11]} 17. Nc2 {[%emt 0:28:22]} cxd5 {[%emt 0:14:37]} 18. exd5 {[%emt 0:03:51]} Bf5 {[%emt 0:04:04]} 19. Rb2 {[%emt 0:03:26]} Bxc2 {[%emt 0:06:08]} 20. Qxc2 {[%emt 0:00:32]} Rac8 {[%emt 0:05:16]} 21. Qe2 {[%emt 0:01:03]} Qd7 {[%emt 0:03:26]} 22. Rc1 {[%emt 0:06:00]} Nc7 {[%emt 0:06:52]} 23. Qf1 {[%emt 0:07:33]} Ra8 {[%emt 0:04:18]} 24. c5 {[%emt 0:02:49]} e4 {[%emt 0:04:51]} 25. c6 {[%emt 0:00:36]} Qf5 {[%emt 0:02:05]} 26. cxb7 {[%emt 0:01:00]} Rab8 {[%emt 0:00:09]} 27. Nxe4 {[%emt 0:00:37]} Nxe4 {[%emt 0:00:36]} 28. Rxc7 {[%emt 0:00:08]} Nf6 {[%emt 0:10:15]} 29. Re2 {[%emt 0:05:22]} Rf8 {[%emt 0:01:59]} 30. Re1 {[%emt 0:03:38]} g6 {[%emt 0:02:57]} 31. Qc4 {[%emt 0:00:28]} Ng4 {[%emt 0:00:47]} 32. Qf4 {[%emt 0:00:42]} Qh5 {[%emt 0:01:08]} 33. h3 {[%emt 0:00:27]} Ne5 {[%emt 0:00:12]} 34. g4 {[%emt 0:00:34]} Qh4 {[%emt 0:00:14]} 35. Qg3 {[%emt 0:00:26]} Qd8 {[%emt 0:00:25]} 36. Rec1 {[%emt 0:00:07]} g5 {[%emt 0:00:56]} 37. Rc8 {[%emt 0:00:37]} Qb6 {[%emt 0:00:53]} 38. Rxb8 {[%emt 0:00:17]} 1-0